bitfinex-derivatives/quotes_BTCF0:USTF0_20251206
["timestamp","ask_amount","ask_price","bid_price","bid_amount"]
[1765014065270,0.00692,89714.0,89713.0,0.07068002]
[1765014067280,0.08717006,89714.0,89713.0,0.07068002]
[1765014070680,0.08025006,89714.0,89713.0,0.07068002]
[1765014071081,0.08717006,89714.0,89713.0,0.07068002]
[1765014076381,0.00692,89714.0,89713.0,0.07068002]
[1765014077984,0.00692,89714.0,89713.0,0.06826]
[1765014082984,0.00692,89714.0,89709.0,0.01982]
[1765014082985,0.00692,89710.0,89709.0,0.05351]
[1765014083294,0.00692,89710.0,89709.0,0.08808]
[1765014084897,0.08716329,89710.0,89709.0,0.08808]
[1765014099517,0.00692,89710.0,89709.0,0.08808]
[1765014105214,0.0111451,89709.0,89706.0,0.08426]
[1765014105920,0.0111451,89709.0,89708.0,0.06312]
[1765014112220,0.5284251,89709.0,89708.0,0.06312]
[1765014114725,0.10031481,89714.0,89708.0,0.06312]
[1765014114930,0.16417934,89718.0,89713.0,0.05738002]
[1765014115229,0.0111445,89714.0,89713.0,0.05496]
[1765014123830,0.011145,89710.0,89709.0,0.04518]
[1765014124043,0.011145,89710.0,89709.0,0.07442]
[1765014125930,0.0111471,89693.0,89692.0,0.01766]
[1765014126233,0.5871871,89693.0,89692.0,0.07534]
[1765014128140,0.66736584,89693.0,89692.0,0.07534]
[1765014130143,0.5871871,89693.0,89692.0,0.07534]
[1765014130734,0.67635347,89693.0,89692.0,0.07534]
[1765014136744,0.15907347,89693.0,89692.0,0.07534]
[1765014136951,0.52955347,89693.0,89692.0,0.07534]
[1765014137745,0.08916637,89693.0,89692.0,0.07534]
[1765014137944,0.0111467,89697.0,89696.0,0.07534]
[1765014138146,0.5284667,89697.0,89696.0,0.07776002]
[1765014139247,0.51732,89697.0,89696.0,0.07776002]
[1765014139446,0.00016728,89701.0,89700.0,0.07534]
[1765014139750,0.51748728,89701.0,89700.0,0.07776002]
[1765014141247,0.60567387,89701.0,89700.0,0.07776002]
[1765014141852,0.51748728,89701.0,89700.0,0.07776002]
[1765014144853,0.5775441,89701.0,89700.0,0.07776002]
[1765014145753,0.51748728,89701.0,89700.0,0.07776002]
[1765014146146,0.5775441,89701.0,89700.0,0.07776002]
[1765014147749,0.57624728,89701.0,89700.0,0.07776002]
[1765014148848,0.57624728,89701.0,89700.0,0.07534]
[1765014150046,0.51748728,89701.0,89700.0,0.07534]
[1765014150244,0.00016728,89701.0,89700.0,0.07534]
[1765014153057,0.06023524,89701.0,89700.0,0.07534]
[1765014154959,0.02986728,89701.0,89700.0,0.07534]
[1765014159763,0.00016728,89701.0,89700.0,0.07534]
[1765014166262,0.05854728,89701.0,89700.0,0.07534]
[1765014166867,0.00016728,89701.0,89700.0,0.07534]
[1765014167961,0.05854728,89701.0,89700.0,0.07534]
[1765014171171,0.11861524,89701.0,89700.0,0.07534]
[1765014174874,0.05854728,89701.0,89700.0,0.07534]
[1765014184177,0.05765728,89701.0,89700.0,0.07534]
[1765014185183,0.06038233,89701.0,89700.0,0.07534]
[1765014185981,0.08922233,89701.0,89700.0,0.07534]
[1765014186378,0.02900728,89701.0,89700.0,0.07534]
[1765014186586,0.06038274,89701.0,89700.0,0.07534]
[1765014188279,0.11701274,89701.0,89700.0,0.07534]
[1765014188486,0.05679728,89701.0,89700.0,0.07534]
[1765014193388,0.05679728,89701.0,89700.0,0.05768]
[1765014193783,0.05663,89697.0,89696.0,0.07408]
[1765014194405,0.05663,89697.0,89696.0,0.05642]
[1765014194707,0.05663,89693.0,89692.0,0.05642]
[1765014195005,0.05663,89689.0,89688.0,0.07408]
[1765014196206,0.05663,89685.0,89684.0,0.05658728]
[1765014196395,0.57387,89685.0,89684.0,0.05658728]
[1765014196592,0.57387,89685.0,89684.0,0.07351728]
[1765014197196,0.57387,89685.0,89684.0,0.05658728]
[1765014199209,0.66509513,89685.0,89684.0,0.05658728]
[1765014200913,0.66509513,89685.0,89684.0,0.07351728]
[1765014220125,0.66509513,89685.0,89684.0,0.05658728]
[1765014224229,0.72517703,89685.0,89684.0,0.05658728]
[1765014226332,0.66509513,89685.0,89684.0,0.05658728]
[1765014228930,0.66509513,89685.0,89684.0,0.00016728]
[1765014229323,0.67931513,89685.0,89684.0,0.00016728]
[1765014230333,0.0675597,89672.0,89671.0,0.02895]
[1765014230641,0.5848797,89672.0,89671.0,0.02895]
[1765014231543,0.5848797,89672.0,89671.0,0.05812]
[1765014233741,0.57373,89672.0,89671.0,0.05812]
[1765014241742,0.05808728,89680.0,89679.0,0.07628]
[1765014242241,0.57544728,89680.0,89679.0,0.07628]
[1765014243550,0.05792,89674.0,89673.0,0.07628]
[1765014244747,0.05792,89674.0,89673.0,0.0583]
[1765014246038,0.05792,89674.0,89673.0,0.02955]
[1765014246240,0.05792,89674.0,89673.0,0.0583]
[1765014250949,0.05792,89674.0,89673.0,0.07628]
[1765014251249,0.07139282,89676.0,89673.0,0.01798]
[1765014251250,0.34524,89675.0,89673.0,0.01798]
[1765014251439,0.34524,89675.0,89674.0,0.06072002]
[1765014251638,0.08995352,89677.0,89676.0,0.0583]
[1765014251843,0.45039352,89677.0,89676.0,0.07628]
[1765014252346,0.42068352,89677.0,89676.0,0.07628]
[1765014252550,0.06024352,89677.0,89676.0,0.07628]
[1765014252849,0.06024352,89678.0,89677.0,0.0583]
[1765014254252,0.00016728,89680.0,89679.0,0.0583]
[1765014254453,0.00016728,89680.0,89679.0,0.06072002]
[1765014258755,0.06923598,89680.0,89679.0,0.06072002]
[1765014268961,0.05808728,89680.0,89679.0,0.06072002]
[1765014269571,0.05808728,89680.0,89679.0,0.03197002]
[1765014270070,0.05808728,89680.0,89679.0,0.05916002]
[1765014271770,0.05808728,89680.0,89679.0,0.07666002]
[1765014273080,0.02987728,89680.0,89679.0,0.07666002]
[1765014275169,0.05798728,89680.0,89679.0,0.07666002]
[1765014290695,0.00016728,89680.0,89679.0,0.07666002]
[1765014295197,0.16429944,89690.0,89679.0,0.07666002]
[1765014295198,0.51728,89691.0,89690.0,0.0563]
[1765014297499,0.011147,89694.0,89693.0,0.05907]
[1765014297701,0.07138102,89698.0,89697.0,0.05907]
[1765014297891,0.10020102,89698.0,89697.0,0.05907]
[1765014298199,0.0399665,89698.0,89697.0,0.05907]
[1765014298399,0.0696265,89698.0,89697.0,0.05907]
[1765014298900,0.0399665,89698.0,89697.0,0.05907]
[1765014299100,0.0111465,89698.0,89697.0,0.05907]
[1765014299502,0.51744728,89699.0,89698.0,0.05907]
[1765014299701,0.51744728,89699.0,89698.0,0.06149002]
[1765014299901,0.57434728,89699.0,89698.0,0.06149002]
[1765014300491,0.51744728,89699.0,89698.0,0.06149002]
[1765014300898,0.54537728,89699.0,89698.0,0.06149002]
[1765014301101,0.57345728,89699.0,89698.0,0.06149002]
[1765014301310,0.57345728,89699.0,89698.0,0.05915]
[1765014305217,0.05617728,89699.0,89698.0,0.05915]
[1765014305402,0.57341728,89699.0,89698.0,0.05915]
[1765014309703,0.05601,89693.0,89692.0,0.07641]
[1765014311716,0.02793,89693.0,89692.0,0.07641]
[1765014312312,0.05601,89693.0,89692.0,0.07641]
[1765014313415,0.58456368,89699.0,89698.0,0.05842]
[1765014315612,0.57341728,89699.0,89698.0,0.05842]
[1765014319711,0.05617728,89699.0,89698.0,0.05842]
[1765014319913,0.57337728,89699.0,89698.0,0.05842]
[1765014331615,0.51736728,89699.0,89694.0,0.05671]
[1765014331923,0.05791,89695.0,89694.0,0.05671]
[1765014336521,0.05791,89695.0,89694.0,0.07443]
[1765014337826,0.05791,89695.0,89694.0,0.05671]
[1765014338022,0.11814452,89695.0,89694.0,0.02729]
[1765014338515,0.05791,89689.0,89688.0,0.05671]
[1765014338715,0.05791,89689.0,89688.0,0.02729]
[1765014338916,0.11814452,89689.0,89688.0,0.02729]
[1765014339112,0.11814452,89689.0,89688.0,0.05671]
[1765014340029,0.05791,89683.0,89682.0,0.05687728]
[1765014340220,0.57507,89683.0,89682.0,0.05687728]
[1765014341031,0.05791,89683.0,89682.0,0.05687728]
[1765014342729,0.02982,89688.0,89687.0,0.05671]
[1765014342923,0.02982,89688.0,89687.0,0.05913002]
[1765014343125,0.06023452,89691.0,89690.0,0.05671]
[1765014344035,0.09005452,89691.0,89690.0,0.05671]
[1765014344333,0.11814452,89691.0,89690.0,0.05671]
[1765014345135,0.05791,89691.0,89690.0,0.05671]
[1765014360547,0.05824,89684.0,89683.0,0.05694]
[1765014363152,0.0693882,89684.0,89683.0,0.05694]
[1765014364952,0.0693882,89684.0,89683.0,0.08679622]
[1765014365349,0.05824,89684.0,89683.0,0.08679622]
[1765014367258,0.05824,89684.0,89683.0,0.05694]
[1765014369252,0.06023452,89695.0,89691.0,0.07446]
[1765014369253,0.05824,89692.0,89691.0,0.07446]
[1765014369652,0.02899,89692.0,89691.0,0.07446]
[1765014369854,0.05824,89692.0,89691.0,0.07446]
[1765014373957,0.05824,89692.0,89691.0,0.05694]
[1765014379072,0.02899,89692.0,89691.0,0.05694]
[1765014379271,0.14956524,89698.0,89697.0,0.05694]
[1765014382371,0.10916874,89698.0,89697.0,0.05694]
[1765014382568,0.02899,89698.0,89697.0,0.05694]
[1765014382965,0.05824,89698.0,89697.0,0.05694]
[1765014391276,0.06019499,89704.0,89698.0,0.05872]
[1765014391585,0.02985,89713.0,89712.0,0.07597]
[1765014391877,0.05824,89713.0,89712.0,0.07597]
[1765014395372,0.06019499,89720.0,89712.0,0.07597]
[1765014395682,0.05824,89722.0,89721.0,0.05872]
[1765014410590,0.05824,89722.0,89721.0,0.02964]
[1765014410891,0.05824,89722.0,89721.0,0.05872]
[1765014411493,0.00027863,89726.0,89721.0,0.05872]
[1765014411801,0.05851863,89726.0,89725.0,0.06114002]
[1765014417204,0.11871362,89726.0,89725.0,0.06114002]
[1765014417800,0.05851863,89726.0,89725.0,0.06114002]
[1765014418194,0.11871362,89726.0,89725.0,0.06114002]
[1765014419299,0.05851863,89726.0,89725.0,0.06114002]
[1765014420907,0.11864196,89726.0,89725.0,0.06114002]
[1765014421208,0.05851863,89726.0,89725.0,0.06114002]
[1765014421794,0.05481863,89726.0,89725.0,0.06114002]
[1765014423510,0.00027863,89726.0,89725.0,0.06114002]
[1765014424005,0.06044384,89726.0,89725.0,0.06114002]
[1765014424206,0.00027863,89726.0,89725.0,0.06114002]
[1765014428207,0.06041035,89726.0,89725.0,0.06114002]
[1765014431311,0.00027863,89726.0,89725.0,0.06114002]
[1765014436621,0.05481863,89726.0,89725.0,0.06114002]
[1765014444217,0.00027863,89726.0,89725.0,0.06114002]
[1765014445728,0.02751863,89726.0,89725.0,0.06114002]
[1765014449636,0.00027863,89726.0,89725.0,0.06114002]
[1765014450038,0.02880863,89726.0,89725.0,0.06114002]
[1765014451429,0.00027863,89726.0,89725.0,0.06114002]
[1765014464952,0.06800163,89726.0,89725.0,0.02964]
[1765014466848,0.0677236,89721.0,89720.0,0.07488]
[1765014467347,0.0111446,89713.0,89709.0,0.04609]
[1765014467551,0.05658,89710.0,89709.0,0.02851]
[1765014467748,0.0677256,89705.0,89704.0,0.05779728]
[1765014467952,0.0677256,89705.0,89704.0,0.0602173]
[1765014468357,0.0677256,89705.0,89704.0,0.05779728]
[1765014468849,0.0677256,89705.0,89704.0,0.00016728]
[1765014469946,0.0677256,89705.0,89704.0,0.05779728]
[1765014470152,0.12777081,89705.0,89704.0,0.05779728]
[1765014470752,0.12777081,89705.0,89704.0,0.07476728]
[1765014471254,0.0677256,89705.0,89704.0,0.07476728]
[1765014472657,0.05658,89705.0,89704.0,0.07476728]
[1765014475155,0.11652918,89705.0,89704.0,0.07476728]
[1765014476256,0.05658,89685.0,89684.0,0.0746]
[1765014487765,0.00016697,89693.0,89692.0,0.0756]
[1765014487956,0.00016697,89693.0,89692.0,0.07802002]
[1765014491368,0.05439697,89693.0,89692.0,0.07802002]
[1765014494972,0.02717697,89693.0,89692.0,0.07802002]
[1765014495278,0.00016697,89693.0,89692.0,0.07802002]
[1765014496365,0.0111453,89708.0,89707.0,0.05799]
[1765014496566,0.0381553,89708.0,89707.0,0.05799]
[1765014496766,0.0653753,89708.0,89707.0,0.05799]
[1765014496966,0.05423,89708.0,89707.0,0.05799]
[1765014497677,0.05423,89701.0,89700.0,0.0756]
[1765014498767,0.0653753,89707.0,89706.0,0.0756]
[1765014498978,0.0653753,89707.0,89706.0,0.07802002]
[1765014499369,0.0653753,89707.0,89706.0,0.0756]
[1765014502276,0.05423,89707.0,89706.0,0.0756]
[1765014505574,0.0653748,89712.0,89711.0,0.05799]
[1765014505779,0.02701,89712.0,89711.0,0.06041002]
[1765014508083,0.05423,89712.0,89711.0,0.06041002]
[1765014508877,0.05423,89712.0,89711.0,0.05799]
[1765014511986,0.05786,89707.0,89706.0,0.07659]
[1765014523684,0.05786,89712.0,89711.0,0.05898]
[1765014523891,0.05786,89712.0,89711.0,0.06140002]
[1765014524489,0.13803874,89712.0,89711.0,0.06140002]
[1765014525081,0.05786,89712.0,89711.0,0.06140002]
[1765014527795,0.57482,89712.0,89711.0,0.06140002]
[1765014538997,0.57482,89712.0,89711.0,0.05898]
[1765014539903,0.05493,89707.0,89706.0,0.07515]
[1765014540601,0.05493,89707.0,89706.0,0.05754]
[1765014540903,0.05493,89701.0,89700.0,0.07515]
[1765014554415,0.02719,89701.0,89700.0,0.07515]
[1765014554615,0.0111454,89707.0,89706.0,0.05754]
[1765014554616,0.0660754,89707.0,89706.0,0.05754]
[1765014555015,0.0660754,89707.0,89706.0,0.07404]
[1765014556017,0.05493,89707.0,89706.0,0.07404]
[1765014556415,0.06020923,89708.0,89707.0,0.05754]
[1765014556614,0.06020923,89711.0,89710.0,0.05754]
[1765014556811,0.06020923,89712.0,89711.0,0.05754]
[1765014557012,0.11513923,89712.0,89711.0,0.05754]
[1765014565232,0.05493,89712.0,89711.0,0.05754]
[1765014592759,0.10031481,89739.0,89725.0,0.05862]
[1765014592953,0.16414814,89740.0,89725.0,0.05862]
[1765014593155,0.05834863,89726.0,89725.0,0.05862]
[1765014593354,0.11850646,89726.0,89725.0,0.05862]
[1765014594362,0.05834863,89726.0,89725.0,0.05862]
[1765014601572,0.0111442,89716.0,89708.0,0.01796]
[1765014601779,0.0111451,89709.0,89708.0,0.01796]
[1765014601956,0.0111451,89709.0,89708.0,0.07587]
[1765014601957,0.0678251,89709.0,89708.0,0.07587]
[1765014602359,0.05668,89701.0,89700.0,0.02912]
[1765014602665,0.0778562,89700.0,89699.0,0.00016718]
[1765014602858,0.0778562,89700.0,89680.0,0.04784648]
[1765014602859,0.05668,89681.0,89680.0,0.07587]
[1765014606664,0.02929718,89689.0,89688.0,0.07587]
[1765014606866,0.05684718,89689.0,89688.0,0.07587]
[1765014613075,0.00016718,89689.0,89688.0,0.07587]
[1765014623988,0.05684718,89689.0,89688.0,0.07587]
[1765014635898,0.00016718,89689.0,89688.0,0.07587]
[1765014639802,0.05615718,89689.0,89688.0,0.07587]
[1765014661316,0.00016718,89689.0,89688.0,0.07587]
[1765014665229,0.00016718,89689.0,89688.0,0.10575648]
[1765014668229,0.00016718,89689.0,89688.0,0.07587]
[1765014704055,0.05571718,89689.0,89688.0,0.07587]
[1765014709366,0.02717718,89689.0,89688.0,0.07587]
[1765014710264,0.00016718,89689.0,89688.0,0.07587]
[1765014728808,0.06015783,89707.0,89706.0,0.07595]
[1765014729088,0.05546,89720.0,89719.0,0.0111439]
[1765014729278,0.05546,89720.0,89719.0,0.0693839]
[1765014729979,0.05546,89720.0,89719.0,0.05824]
[1765014730980,0.0111439,89719.0,89715.0,0.02829]
[1765014731183,0.05546,89716.0,89715.0,0.02829]
[1765014731680,0.05546,89713.0,89712.0,0.02829]
[1765014731984,0.0111443,89715.0,89711.0,0.00016718]
[1765014731985,0.05546,89712.0,89711.0,0.00016718]
[1765014732190,0.45546,89712.0,89711.0,0.00016718]
[1765014733586,0.45546,89712.0,89693.0,0.05824]
[1765014733587,0.066607,89694.0,89693.0,0.05824]
[1765014733778,0.05546,89694.0,89693.0,0.05824]
[1765014738397,0.05546,89689.0,89688.0,0.07595]
[1765014738699,0.05546,89689.0,89688.0,0.02829]
[1765014738890,0.05546,89689.0,89688.0,0.05824]
[1765014739488,0.05546,89689.0,89688.0,0.07595]
[1765014739992,0.0666076,89689.0,89688.0,0.07595]
[1765014758806,0.0111471,89693.0,89688.0,0.07595]
[1765014759102,0.4518965,89698.0,89697.0,0.077]
[1765014759405,0.0682565,89698.0,89697.0,0.077]
[1765014759708,0.0403265,89698.0,89697.0,0.077]
[1765014760006,0.0682565,89698.0,89697.0,0.077]
[1765014764304,0.0682565,89698.0,89697.0,0.02915]
[1765014764504,0.0682572,89692.0,89691.0,0.077]
[1765014767907,0.0682572,89692.0,89691.0,0.0591]
[1765014768102,0.068258,89686.0,89685.0,0.07716718]
[1765014768308,0.068258,89686.0,89685.0,0.02931718]
[1765014768604,0.068258,89686.0,89685.0,0.05926718]
[1765014777413,0.068258,89686.0,89685.0,0.00016718]
[1765014778218,0.0695591,89677.0,89676.0,0.07367]
[1765014778809,0.0695596,89673.0,89672.0,0.08569824]
[1765014779214,0.0695596,89673.0,89672.0,0.05577]
[1765014780515,0.0695596,89673.0,89672.0,0.02847]
[1765014780821,0.0687702,89668.0,89667.0,0.05651]
[1765014781210,0.05762,89665.0,89664.0,0.00016718]
[1765014781519,0.0687712,89660.0,89659.0,9.096e-05]
[1765014781720,0.01422,89664.0,89649.0,0.05651]
[1765014781721,0.0687724,89650.0,89649.0,0.05651]
[1765014781919,0.0687714,89659.0,89658.0,0.05651]
[1765014782219,0.4228514,89659.0,89658.0,0.05651]
[1765014782615,0.42294236,89659.0,89658.0,0.05651]
[1765014783717,9.096e-05,89659.0,89658.0,0.05651]
[1765014793025,0.05771096,89659.0,89658.0,0.05651]
[1765014799027,9.096e-05,89659.0,89658.0,0.05651]
[1765014800025,0.05771096,89659.0,89658.0,0.05651]
[1765014800829,0.02873096,89659.0,89658.0,0.05651]
[1765014802338,0.05771096,89659.0,89658.0,0.05651]
[1765014803020,9.096e-05,89659.0,89658.0,0.05651]
[1765014810140,0.05842096,89659.0,89658.0,0.05651]
[1765014811436,9.096e-05,89659.0,89658.0,0.05651]
[1765014813841,0.00016728,89667.0,89666.0,0.05615]
[1765014816340,0.00016728,89667.0,89666.0,0.08609334]
[1765014817436,0.05844728,89667.0,89666.0,0.08609334]
[1765014818244,0.05844728,89667.0,89666.0,0.05615]
[1765014822546,0.00016728,89667.0,89666.0,0.05615]
[1765014831949,0.08880474,89677.0,89666.0,0.05615]
[1765014832151,0.17544297,89680.0,89679.0,0.05615]
[1765014832451,0.13092463,89680.0,89679.0,0.05615]
[1765014833248,0.11977583,89680.0,89679.0,0.05615]
[1765014833649,0.14946583,89680.0,89679.0,0.05615]
[1765014836755,0.16061453,89680.0,89679.0,0.0285]
[1765014837562,0.16061453,89680.0,89679.0,0.05553]
[1765014839063,0.05739,89673.0,89672.0,0.07231]
[1765014840356,0.0382291,89677.0,89676.0,0.07438]
[1765014840561,0.0673891,89677.0,89676.0,0.07680002]
[1765014840761,0.05624,89677.0,89676.0,0.07680002]
[1765014841352,0.11826583,89680.0,89679.0,0.0571]
[1765014841559,0.05624,89680.0,89679.0,0.05952002]
[1765014843163,0.05624,89680.0,89679.0,0.0571]
[1765014844164,0.1475596,89680.0,89679.0,0.0571]
[1765014859872,0.011148,89686.0,89677.0,0.011149]
[1765014859873,0.06022593,89682.0,89681.0,0.0571]
[1765014860071,0.57730593,89682.0,89681.0,0.0571]
[1765014860672,0.60438593,89682.0,89681.0,0.0571]
[1765014860978,0.02708,89682.0,89681.0,0.0571]
[1765014861466,0.05624,89682.0,89681.0,0.0571]
[1765014874385,0.0679791,89677.0,89676.0,0.05689]
[1765014874687,0.05683,89673.0,89672.0,0.05689]
[1765014875182,0.0111495,89674.0,89665.0,0.02994334]
[1765014875183,0.06909,89672.0,89665.0,0.02994334]
[1765014875379,0.06909,89672.0,89660.0,0.03997633]
[1765014875380,0.06909,89672.0,89660.0,0.02994334]
[1765014875583,0.06909,89672.0,89654.0,0.02994334]
[1765014875783,0.06909,89672.0,89653.0,0.02994334]
[1765014876381,0.06909,89672.0,89652.0,0.05769544]
[1765014877486,0.06909,89672.0,89652.0,0.0277521]
[1765014878586,0.05683,89653.0,89652.0,0.0846421]
[1765014880184,0.05683,89653.0,89652.0,0.07349]
[1765014880884,0.05683,89653.0,89652.0,0.07449]
[1765014882489,0.05683,89653.0,89652.0,0.05789]
[1765014883787,0.14691038,89653.0,89652.0,0.05789]
[1765014884787,0.05683,89653.0,89652.0,0.05789]
[1765014886789,0.05683,89653.0,89652.0,0.02949]
[1765014887391,0.05683,89653.0,89652.0,0.05789]
[1765014889194,0.14439492,89653.0,89652.0,0.05789]
[1765014891097,0.14439492,89653.0,89652.0,0.001]
[1765014892393,0.05683,89647.0,89646.0,0.02876888]
[1765014892795,0.05683,89647.0,89646.0,0.00027888]
[1765014892995,0.0679828,89647.0,89646.0,0.00027888]
[1765014893197,0.05683,89645.0,89644.0,0.00016728]
[1765014893394,0.05683,89645.0,89644.0,0.02865728]
[1765014893594,0.05683,89645.0,89644.0,0.05705728]
[1765014894394,0.05883,89645.0,89644.0,0.05705728]
[1765014897898,0.05883,89645.0,89644.0,0.00016728]
[1765014898099,0.05663,89633.0,89632.0,0.07259]
[1765014899599,0.05763,89633.0,89632.0,0.07259]
[1765014900303,0.001,89633.0,89632.0,0.07259]
[1765014900503,0.03008,89633.0,89632.0,0.07259]
[1765014900801,0.05786,89633.0,89632.0,0.07259]
[1765014902393,0.03008,89633.0,89632.0,0.07259]
[1765014902593,0.05786,89633.0,89632.0,0.07259]
[1765014902802,0.03008,89633.0,89632.0,0.07259]
[1765014903401,0.05786,89633.0,89632.0,0.07259]
[1765014905003,0.001,89633.0,89632.0,0.07259]
[1765014905907,0.03008,89633.0,89632.0,0.07259]
[1765014906608,0.001,89633.0,89632.0,0.07259]
[1765014911323,0.001,89633.0,89632.0,0.07359]
[1765014911525,0.00016728,89641.0,89640.0,0.07636]
[1765014911710,0.00016728,89641.0,89640.0,0.07878002]
[1765014913021,0.00016728,89641.0,89640.0,0.08993372]
[1765014913223,0.00116728,89641.0,89640.0,0.08993372]
[1765014915015,0.00016728,89641.0,89640.0,0.08993372]
[1765014915215,0.00116728,89641.0,89640.0,0.08993372]
[1765014916023,0.00016728,89641.0,89640.0,0.08993372]
[1765014916321,0.00116728,89641.0,89640.0,0.08993372]
[1765014917827,0.00016728,89641.0,89640.0,0.08993372]
[1765014918027,0.00116728,89641.0,89640.0,0.08993372]
[1765014919423,0.00016728,89641.0,89640.0,0.08993372]
[1765014919621,0.00116728,89641.0,89640.0,0.08993372]
[1765014921226,0.00016728,89641.0,89640.0,0.08993372]
[1765014921431,0.00116728,89641.0,89640.0,0.08993372]
[1765014922124,0.00016728,89641.0,89640.0,0.08993372]
[1765014922326,0.00116728,89641.0,89640.0,0.08993372]
[1765014924628,0.0111517,89657.0,89656.0,0.05882]
[1765014925228,0.0402317,89657.0,89656.0,0.05882]
[1765014925430,0.02908,89657.0,89656.0,0.05882]
[1765014925734,0.05786,89657.0,89656.0,0.05882]
[1765014927533,0.05686,89657.0,89656.0,0.05882]
[1765014929331,0.0680116,89657.0,89656.0,0.05882]
[1765014934244,0.0111521,89653.0,89652.0,0.02887]
[1765014934441,0.0669021,89653.0,89652.0,0.02887]
[1765014934945,0.0669026,89649.0,89648.0,0.02903728]
[1765014935642,0.0669026,89649.0,89648.0,0.05685728]
[1765014935838,0.0669026,89649.0,89648.0,0.00016728]
[1765014941140,0.0669026,89649.0,89648.0,0.05685728]
[1765014941442,0.0669026,89649.0,89648.0,0.02903728]
[1765014941643,0.0669026,89649.0,89648.0,0.00016728]
[1765014943744,0.0669026,89649.0,89648.0,0.02903728]
[1765014943943,0.0669026,89649.0,89648.0,0.05685728]
[1765014944950,0.0669026,89649.0,89648.0,0.02903728]
[1765014947043,0.0669026,89649.0,89648.0,0.05685728]
[1765014959367,0.5842626,89649.0,89648.0,0.05685728]
[1765014966661,0.0669026,89649.0,89648.0,0.05685728]
[1765014966872,0.5842226,89649.0,89648.0,0.05685728]
[1765014969466,0.5842226,89649.0,89648.0,0.00016728]
[1765014970367,0.5842226,89649.0,89648.0,0.02823728]
[1765014973869,0.5842226,89649.0,89648.0,0.05691728]
[1765014983076,0.08034261,89659.0,89653.0,0.05675]
[1765014983379,0.3054,89666.0,89664.0,0.073]
[1765014984066,0.02879728,89665.0,89664.0,0.073]
[1765014985272,0.08892529,89665.0,89664.0,0.073]
[1765014985472,0.02879728,89665.0,89664.0,0.073]
[1765014986674,0.05598728,89665.0,89664.0,0.05675]
[1765014988576,0.05598728,89665.0,89664.0,0.073]
[1765014989778,0.05598728,89665.0,89664.0,0.05675]
[1765015000188,0.05688,89657.0,89656.0,0.05716]
[1765015007897,0.01682,89658.0,89648.0,0.05732728]
[1765015007898,0.05688,89649.0,89648.0,0.05732728]
[1765015008304,0.05688,89649.0,89648.0,0.02766728]
[1765015008608,0.05688,89649.0,89648.0,0.00016728]
[1765015009205,0.05688,89649.0,89648.0,0.02766728]
[1765015009508,0.05688,89649.0,89648.0,0.05732728]
[1765015011110,0.05688,89649.0,89648.0,0.07182728]
[1765015012305,0.05688,89649.0,89648.0,0.05732728]
[1765015019904,0.05688,89649.0,89648.0,0.00016728]
[1765015020110,0.05688,89649.0,89648.0,0.05821728]
[1765015020305,0.05688,89649.0,89648.0,0.07451728]
[1765015022403,0.06012801,89653.0,89652.0,0.07435]
[1765015022404,0.02902,89653.0,89652.0,0.07435]
[1765015022607,0.40514,89653.0,89652.0,0.07677002]
[1765015022813,0.57482,89653.0,89652.0,0.07677002]
[1765015023406,0.06012801,89659.0,89658.0,0.05805]
[1765015023611,0.02918728,89665.0,89664.0,0.07435]
[1765015023812,0.57502728,89665.0,89664.0,0.07677002]
[1765015025209,0.57602728,89665.0,89664.0,0.07677002]
[1765015028320,0.57602728,89665.0,89664.0,0.06047002]
[1765015029009,0.57602728,89665.0,89664.0,0.05805]
[1765015029214,0.05746,89657.0,89656.0,0.05805]
[1765015030525,0.05846,89657.0,89656.0,0.05805]
[1765015042321,0.05846,89657.0,89656.0,0.07435]
[1765015042712,0.001,89657.0,89656.0,0.07435]
[1765015074040,0.00016728,89665.0,89664.0,0.07484]
[1765015074235,0.00016728,89665.0,89664.0,0.10727791]
[1765015074626,0.22168071,89680.0,89679.0,0.05854]
[1765015074939,0.05736,89680.0,89679.0,0.05854]
[1765015077438,0.14830487,89680.0,89679.0,0.05854]
[1765015077647,0.05736,89680.0,89679.0,0.05854]
[1765015079933,0.14771646,89680.0,89679.0,0.05854]
[1765015085953,0.0676397,89672.0,89671.0,0.05551728]
[1765015086141,0.0676397,89672.0,89671.0,0.0579373]
[1765015086841,0.0676397,89672.0,89671.0,0.05551728]
[1765015088248,0.0676397,89672.0,89671.0,0.00016728]
[1765015088249,0.5847997,89672.0,89671.0,0.00016728]
[1765015088751,0.05649,89653.0,89650.0,0.03001622]
[1765015089048,0.05649,89653.0,89628.0,0.01678]
[1765015089049,0.05649,89630.0,89629.0,0.05535]
[1765015111663,0.01132128,89638.0,89629.0,0.011155]
[1765015111860,0.04001128,89638.0,89637.0,0.05748002]
[1765015112055,0.06891128,89638.0,89637.0,0.05748002]
[1765015113063,0.05775728,89638.0,89637.0,0.05748002]
[1765015116263,0.02885728,89638.0,89637.0,0.05748002]
[1765015116572,0.00016728,89638.0,89637.0,0.05748002]
[1765015116866,0.02885728,89638.0,89637.0,0.05748002]
[1765015117071,0.05775728,89638.0,89637.0,0.05748002]
[1765015121369,0.05775728,89638.0,89637.0,0.08753829]
[1765015121569,0.05775728,89638.0,89637.0,0.05748002]
[1765015122378,0.05775728,89638.0,89637.0,0.08753808]
[1765015124179,0.05775728,89638.0,89637.0,0.05995808]
[1765015124376,0.05775728,89638.0,89637.0,0.00242002]
[1765015124578,0.05775728,89638.0,89637.0,0.02990002]
[1765015124779,0.05775728,89638.0,89637.0,0.05748002]
[1765015125278,0.02885728,89638.0,89637.0,0.05748002]
[1765015125584,0.05775728,89638.0,89637.0,0.05748002]
[1765015135294,0.05775728,89638.0,89637.0,0.00242002]
[1765015135491,0.05915,89636.0,89635.0,0.04005129]
[1765015135692,0.07665,89634.0,89633.0,0.09555129]
[1765015136400,0.0703045,89633.0,89632.0,0.04005129]
[1765015136800,0.05915,89633.0,89632.0,0.09555129]
[1765015137894,0.05915,89637.0,89632.0,0.04005129]
[1765015138094,0.05915,89637.0,89636.0,0.05792002]
[1765015143705,0.05632,89635.0,89633.0,0.04005129]
[1765015143905,0.05632,89630.0,89629.0,0.04005129]
[1765015144705,0.05632,89630.0,89629.0,0.06720129]
[1765015145100,0.05632,89630.0,89629.0,0.09620129]
[1765015147208,0.05632,89630.0,89629.0,0.05615]